fUST/lending_fUST_20250730
["ID","MTS","AMOUNT","RATE_DAILY","PERIOD"]
[376126647,1753871440674,-342.35803449,0.0001883,2]
[376126648,1753871440684,-339.66843317,0.0001883,2]
[376126651,1753871440697,-120.33156683,0.0001883,2]
[376126653,1753871440706,-460.0,0.0001883,2]
[376126655,1753871440715,-460.0,0.0001883,2]
[376126657,1753871440725,-460.0,0.0001883,2]
[376126659,1753871440734,-460.0,0.0001883,2]
[376126661,1753871440743,-288.67510871,0.0001883,2]
[376126663,1753871440753,-460.0,0.0001883,2]
[376126665,1753871440763,-460.0,0.0001883,2]
[376126667,1753871440773,-460.0,0.0001883,2]
[376126669,1753871440783,-460.0,0.0001883,2]
[376126671,1753871440793,-460.0,0.0001883,2]
[376126673,1753871440803,-460.0,0.0001883,2]
[376126675,1753871440812,-460.0,0.0001883,2]
[376126677,1753871440821,-460.0,0.0001883,2]
[376126679,1753871440831,-460.0,0.0001883,2]
[376126681,1753871440840,-460.0,0.0001883,2]
[376126683,1753871440849,-460.0,0.0001883,2]
[376126685,1753871440858,-255.62693845,0.0001883,2]
[376126687,1753871440868,-412.30863322,0.0001883,2]
[376126690,1753871440880,-21.18423094,0.0001883,2]
[376126692,1753871440890,-460.0,0.0001883,2]
[376126694,1753871440899,-500.0,0.0001883,2]
[376126696,1753871440909,-460.0,0.0001883,2]
[376126698,1753871440919,-460.0,0.0001883,2]
[376126700,1753871440928,-460.0,0.0001883,2]
[376126702,1753871440938,-460.0,0.0001883,2]
[376126704,1753871440947,-460.0,0.0001883,2]
[376126706,1753871440956,-460.0,0.0001883,2]
[376126708,1753871440965,-460.0,0.0001883,2]
[376126710,1753871440976,-486.63842632,0.0001883,2]
[376126712,1753871440987,-556.97,0.0001883,2]
[376126714,1753871440996,-460.0,0.0001883,2]
[376126716,1753871441006,-460.0,0.0001883,2]
[376126718,1753871441015,-406.56166694,0.0001883,2]
[376126720,1753871441025,-500.0,0.00018831,2]
[376126722,1753871441035,-1477.82,0.00018831,2]
[376126724,1753871441044,-460.0,0.00018831,2]
[376126726,1753871441054,-460.0,0.00018831,2]
[376126728,1753871441063,-460.0,0.00018831,2]
[376126730,1753871441073,-720.85,0.00018832,2]
[376126732,1753871441083,-460.0,0.00018832,2]
[376126735,1753871441093,-460.0,0.00018832,2]
[376126737,1753871441103,-500.0,0.00018833,2]
[376126738,1753871441111,-897.26,0.00018899,2]
[376126740,1753871441121,-460.0,0.00018899,2]
[376126742,1753871441130,-460.0,0.00018899,2]
[376126745,1753871441139,-460.0,0.00018899,2]
[376126747,1753871441151,-386.27326327,0.000189,2]
[376126749,1753871441161,-453.89493928,0.000189,2]
[376126751,1753871441172,-460.0,0.00019102,2]
[376126753,1753871441184,-460.0,0.00019102,2]
[376126755,1753871441192,-460.0,0.00019102,2]
[376126757,1753871441202,-563.96,0.00019102,2]
[376126759,1753871441212,-460.0,0.00019102,2]
[376126761,1753871441223,-515.41,0.00019103,2]
[376126763,1753871441232,-460.0,0.00019103,2]
[376126765,1753871441241,-460.0,0.00019103,2]
[376126767,1753871441254,-460.0,0.00019103,2]
[376126769,1753871441265,-579.92,0.00019103,2]
[376126771,1753871441274,-470.7,0.00019103,2]
[376126773,1753871441285,-460.0,0.00019103,2]
[376126775,1753871441295,-460.0,0.00019103,2]
[376126777,1753871441304,-603.71,0.00019103,2]
[376126779,1753871441314,-460.0,0.00019103,2]
[376126781,1753871441323,-585.03,0.00019103,2]
[376126783,1753871441332,-536.47,0.00019103,2]
[376126785,1753871441342,-460.0,0.00019104,2]
[376126787,1753871441351,-460.0,0.00019104,2]
[376126789,1753871441360,-460.0,0.00019104,2]
[376126791,1753871441369,-460.0,0.00019104,2]
[376126793,1753871441379,-460.0,0.00019104,2]
[376126795,1753871441388,-460.0,0.00019104,2]
[376126797,1753871441397,-556.97,0.00019104,2]
[376126799,1753871441408,-426.16,0.00019104,2]
[376126801,1753871441418,-414.52232191,0.00019105,2]
[376126803,1753871441427,-1477.82,0.00019105,2]
[376126805,1753871441437,-460.0,0.00019105,2]
[376126807,1753871441446,-460.0,0.00019105,2]
[376126826,1753871441610,-460.0,0.00019105,2]
[376126828,1753871441623,-720.85,0.00019106,2]
[376126830,1753871441633,-460.0,0.00019106,2]
[376126832,1753871441643,-460.0,0.00019106,2]
[376126834,1753871441653,-897.26,0.00019173,2]
[376126836,1753871441663,-460.0,0.00019173,2]
[376126838,1753871441672,-460.0,0.00019173,2]
[376126841,1753871441682,-200.0,0.00019206,15]
[376126843,1753871441691,-200.0,0.00019206,15]
[376126845,1753871441701,-200.0,0.00019206,15]
[376126847,1753871441711,-200.0,0.00019206,15]
[376126849,1753871441720,-200.0,0.00019206,15]
[376126851,1753871441730,-200.0,0.00019206,15]
[376126853,1753871441739,-200.0,0.00019206,15]
[376126855,1753871441748,-16.41476691,0.00019206,15]
[376127045,1753871443646,-540.42054471,0.0001883,2]
[376127047,1753871443656,-183.58523309,0.00019206,15]
[376127049,1753871443666,-31.74645842,0.00019206,15]
[376127054,1753871443698,-460.0,0.0001883,2]
[376127055,1753871443707,-168.25354158,0.00019206,15]
[376127058,1753871443718,-200.0,0.00019206,15]
[376127060,1753871443727,-200.0,0.00019206,15]
[376127062,1753871443737,-200.0,0.00019206,15]
[376127063,1753871443747,-200.0,0.00019206,15]
[376127066,1753871443757,-200.0,0.00019206,15]
[376127068,1753871443767,-200.0,0.00019206,15]
[376127069,1753871443776,-200.0,0.00019206,15]
[376127072,1753871443786,-461.26980167,0.00019376,2]
[376127074,1753871443796,-460.0,0.00019376,2]
[376127076,1753871443805,-352.11,0.00019376,2]
[376127077,1753871443814,-460.0,0.00019376,2]
[376127079,1753871443824,-460.0,0.00019377,2]
[376127082,1753871443834,-460.0,0.00019377,2]
[376127084,1753871443843,-279.24290323,0.00019377,2]
[376127086,1753871443855,-300.67709677,0.00019377,2]
[376127088,1753871443864,-208.10423585,0.00019377,2]
[376127367,1753871446816,-200.0,0.00019206,15]
[376127369,1753871446826,-200.0,0.00019206,15]
[376127371,1753871446835,-262.59576415,0.00019377,2]
[376127373,1753871446844,-460.0,0.00019377,2]
[376127375,1753871446854,-460.0,0.00019377,2]
[376127377,1753871446864,-460.0,0.00019378,2]
[376127379,1753871446873,-460.0,0.00019378,2]
[376127381,1753871446883,-436.22,0.00019378,2]
[376127383,1753871446892,-460.0,0.00019378,2]
[376127385,1753871446901,-556.97,0.00019378,2]
[376127387,1753871446911,-1477.82,0.00019379,2]
[376127389,1753871446920,-460.0,0.00019379,2]
[376127391,1753871446929,-460.0,0.00019379,2]
[376127393,1753871446939,-460.0,0.00019379,2]
[376127395,1753871446948,-720.85,0.0001938,2]
[376127397,1753871446958,-460.0,0.0001938,2]
[376127399,1753871446967,-460.0,0.0001938,2]
[376127401,1753871446977,-897.26,0.00019447,2]
[376127403,1753871446986,-460.0,0.00019447,2]
[376127405,1753871446996,-460.0,0.00019447,2]
[376127407,1753871447005,-475.3827593,0.0001965,2]
[376127409,1753871447015,-460.0,0.0001965,2]
[376127411,1753871447024,-460.0,0.00019651,2]
[376127413,1753871447036,-280.03012748,0.00019651,2]
[376127415,1753871447045,-23.58315913,0.00019651,2]
[376127417,1753871447057,-538.16046026,0.00019651,2]
[376127419,1753871447068,-18.17638061,0.00019651,2]
[376127421,1753871447078,-470.7,0.00019651,2]
[376127423,1753871447087,-460.0,0.00019651,2]
[376127425,1753871447097,-460.0,0.00019651,2]
[376127427,1753871447106,-460.0,0.00019652,2]
[376127429,1753871447115,-460.0,0.00019652,2]
[376127431,1753871447124,-460.0,0.00019652,2]
[376127433,1753871447134,-556.97,0.00019652,2]
[376127435,1753871447144,-1477.82,0.00019653,2]
[376127437,1753871447153,-460.0,0.00019653,2]
[376127439,1753871447163,-460.0,0.00019653,2]
[376127441,1753871447172,-198.8710521,0.00019653,2]
[376127443,1753871447187,-261.1289479,0.00019653,2]
[376127446,1753871447200,-511.75331368,0.00019654,2]
[376129769,1753872426572,189.894527,0.00013699,2]
[376129822,1753872631930,-460.0,0.00018828,2]
[376129824,1753872631940,-254.03985833,0.00018828,2]
[376129826,1753872631949,-460.0,0.00018828,2]
[376129828,1753872631959,-460.0,0.00018828,2]
[376129830,1753872631968,-171.83014167,0.00018828,2]
[376130157,1753872637963,-288.16985833,0.00018828,2]
[376130159,1753872637973,-460.0,0.00018828,2]
[376130162,1753872637983,-460.0,0.00018828,2]
[376130163,1753872637993,-460.0,0.00018828,2]
[376130166,1753872638003,-460.0,0.00018828,2]
[376130168,1753872638012,-460.0,0.00018828,2]
[376130170,1753872638021,-460.0,0.00018828,2]
[376130171,1753872638031,-461.46370445,0.00018828,2]
[376130173,1753872638040,-462.45382263,0.00018828,2]
[376130175,1753872638049,-460.82411049,0.00018828,2]
[376130177,1753872638058,-460.0,0.00018828,2]
[376130179,1753872638068,-462.92361912,0.00018828,2]
[376130181,1753872638077,-460.0,0.00018828,2]
[376130183,1753872638087,-460.0,0.00018828,2]
[376130185,1753872638096,-460.0,0.00018828,2]
[376130187,1753872638105,-460.0,0.00018828,2]
[376130189,1753872638114,-460.0,0.00018828,2]
[376130191,1753872638124,-460.0,0.00018828,2]
[376130193,1753872638133,-460.0,0.00018828,2]
[376130195,1753872638142,-460.0,0.00018828,2]
[376130197,1753872638151,-460.0,0.00018828,2]
[376130199,1753872638160,-576.14,0.00018828,2]
[376130201,1753872638169,-460.0,0.00018828,2]
[376130203,1753872638178,-460.0,0.00018828,2]
[376130205,1753872638187,-314.73720378,0.00018828,2]
[376130207,1753872638196,-460.0,0.00018829,2]
[376130209,1753872638206,-460.0,0.00018829,2]
[376130211,1753872638215,-460.0,0.00018829,2]
[376130213,1753872638224,-460.0,0.00018829,2]
[376130215,1753872638234,-460.0,0.00018829,2]
[376130218,1753872638253,-460.0,0.00018829,2]
[376130220,1753872638263,-460.0,0.00018829,2]
[376130222,1753872638272,-460.0,0.00018829,2]
[376130224,1753872638282,-460.0,0.00018829,2]
[376130226,1753872638292,-460.0,0.00018829,2]
[376130228,1753872638301,-460.0,0.00018829,2]
[376130230,1753872638311,-460.0,0.00018829,2]
[376130232,1753872638320,-460.0,0.00018829,2]
[376130234,1753872638330,-460.0,0.00018829,2]
[376130236,1753872638339,-460.0,0.00018829,2]
[376130238,1753872638348,-378.44005049,0.00018829,2]
[376130240,1753872638358,-460.0,0.00018829,2]
[376130242,1753872638367,-460.0,0.00018829,2]
[376130244,1753872638376,-460.0,0.00018829,2]
[376130246,1753872638386,-460.0,0.00018829,2]
[376130248,1753872638395,-460.0,0.00018829,2]
[376130250,1753872638405,-460.0,0.00018829,2]
[376130252,1753872638415,-460.0,0.00018829,2]
[376130254,1753872638424,-460.0,0.00018829,2]
[376130256,1753872638434,-348.5251577,0.00018829,2]
[376130258,1753872638443,-460.0,0.00018829,2]
[376130260,1753872638452,-550.63,0.00018829,2]
[376130262,1753872638461,-460.0,0.00018829,2]
[376130264,1753872638471,-460.0,0.00018829,2]
[376130266,1753872638482,-460.0,0.00018829,2]
[376130269,1753872638494,-460.0,0.00018829,2]
[376130271,1753872638504,-460.0,0.00018829,2]
[376130273,1753872638513,-460.0,0.00018829,2]
[376130275,1753872638523,-460.0,0.00018829,2]
[376130277,1753872638532,-460.0,0.00018829,2]
[376130279,1753872638542,-460.0,0.00018829,2]
[376130280,1753872638556,-460.0,0.00018829,2]
[376130282,1753872638565,-439.0,0.00018829,2]
[376130284,1753872638575,-460.0,0.00018829,2]
[376130287,1753872638585,-561.21,0.00018829,2]
[376130289,1753872638595,-460.0,0.00018829,2]
[376130291,1753872638604,-460.0,0.00018829,2]
[376130293,1753872638614,-797.88,0.00018829,2]
[376130295,1753872638623,-460.0,0.00018829,2]
[376130297,1753872638635,-1482.56,0.00018829,2]
[376130299,1753872638645,-460.0,0.00018829,2]
[376130301,1753872638655,-460.0,0.00018829,2]
[376130303,1753872638664,-460.0,0.00018829,2]
[376130305,1753872638673,-460.0,0.00018829,2]
[376130307,1753872638683,-460.0,0.00018829,2]
[376130309,1753872638693,-460.0,0.00018829,2]
[376130311,1753872638702,-460.0,0.00018829,2]
[376130313,1753872638711,-460.0,0.00018829,2]
[376130315,1753872638720,-460.0,0.00018829,2]
[376130317,1753872638730,-460.0,0.00018829,2]
[376130319,1753872638741,-460.0,0.00018829,2]
[376130321,1753872638750,-460.0,0.00018829,2]
[376130323,1753872638759,-460.0,0.00018829,2]
[376130325,1753872638768,-599.23,0.00018829,2]
[376130327,1753872638778,-460.0,0.00018829,2]
[376130329,1753872638787,-460.0,0.00018829,2]
[376130331,1753872638797,-460.0,0.00018829,2]
[376130333,1753872638806,-197.06180361,0.00018829,2]
[376130335,1753872638815,-460.0,0.00018829,2]
[376130337,1753872638825,-460.0,0.00018829,2]
[376130339,1753872638834,-460.0,0.00018829,2]
[376130341,1753872638844,-460.0,0.00018829,2]
[376130343,1753872638853,-460.0,0.00018829,2]
[376130345,1753872638862,-460.0,0.00018829,2]
[376130347,1753872638871,-460.0,0.00018829,2]
[376130349,1753872638880,-460.0,0.00018829,2]
[376130351,1753872638889,-460.0,0.00018829,2]
[376130353,1753872638899,-460.0,0.00018829,2]
[376130355,1753872638908,-460.0,0.00018829,2]
[376130357,1753872638917,-460.0,0.00018829,2]
[376130359,1753872638926,-460.0,0.00018829,2]
[376130361,1753872638935,-460.0,0.00018829,2]
[376130363,1753872638945,-478.96287956,0.00018829,2]
[376130365,1753872638955,-460.0,0.00018829,2]
[376130367,1753872638964,-585.59,0.00018829,2]
[376130369,1753872638974,-460.0,0.00018829,2]
[376130371,1753872638983,-460.0,0.00018829,2]
[376130373,1753872638993,-460.0,0.00018829,2]
[376130375,1753872639003,-460.0,0.00018829,2]
[376130377,1753872639013,-537.81,0.00018829,2]
[376130379,1753872639022,-460.0,0.00018829,2]
[376130381,1753872639031,-460.0,0.00018829,2]
[376130383,1753872639041,-460.0,0.00018829,2]
[376130385,1753872639050,-460.0,0.00018829,2]
[376130387,1753872639060,-460.0,0.00018829,2]
[376130389,1753872639069,-460.44,0.00018829,2]
[376130391,1753872639078,-460.0,0.00018829,2]
[376130393,1753872639087,-460.0,0.00018829,2]
[376130395,1753872639097,-460.0,0.00018829,2]
[376130397,1753872639107,-460.0,0.00018829,2]
[376130399,1753872639115,-460.0,0.00018829,2]
[376130401,1753872639125,-460.0,0.00018829,2]
[376130403,1753872639134,-3546.25296873,0.0001883,2]
[376130405,1753872639144,-10228.99273887,0.0001883,5]
[376130407,1753872639153,-460.0,0.0001883,2]
[376130409,1753872639163,-460.0,0.0001883,2]
[376130411,1753872639172,-460.0,0.0001883,2]
[376130413,1753872639181,-460.0,0.0001883,2]
[376130415,1753872639191,-460.0,0.0001883,2]
[376130417,1753872639200,-504.27,0.0001883,2]
[376130419,1753872639210,-460.0,0.0001883,2]
[376130421,1753872639219,-460.0,0.0001883,2]
[376130423,1753872639230,-460.0,0.0001883,2]
[376130425,1753872639239,-460.0,0.0001883,2]
[376130427,1753872639249,-218.75495853,0.0001883,2]
[376130481,1753872639752,-241.24504147,0.0001883,2]
[376130483,1753872639762,-295.81504523,0.0001883,2]
[376130489,1753872639806,-164.18495477,0.0001883,2]
[376130491,1753872639815,-460.0,0.0001883,2]
[376130493,1753872639825,-460.0,0.0001883,2]
[376130495,1753872639834,-460.0,0.0001883,2]
[376130497,1753872639844,-460.0,0.0001883,2]
[376130499,1753872639853,-460.0,0.0001883,2]
[376130501,1753872639863,-460.0,0.0001883,2]
[376130503,1753872639872,-460.0,0.0001883,2]
[376130505,1753872639882,-460.0,0.0001883,2]
[376130507,1753872639891,-460.0,0.0001883,2]
[376130509,1753872639900,-460.0,0.0001883,2]
[376130511,1753872639910,-151.0,0.0001883,2]
[376130513,1753872639919,-460.0,0.0001883,2]
[376130515,1753872639928,-460.0,0.0001883,2]
[376130517,1753872639938,-151.0,0.0001883,2]
[376130519,1753872639947,-460.0,0.0001883,2]
[376130521,1753872639956,-151.63121868,0.0001883,2]
[376130523,1753872639966,-460.0,0.0001883,2]
[376130525,1753872639976,-460.0,0.0001883,2]
[376130527,1753872639986,-524.79120554,0.0001883,2]
[376130529,1753872639995,-460.0,0.0001883,2]
[376130531,1753872640004,-460.0,0.0001883,2]
[376130533,1753872640013,-460.0,0.0001883,2]
[376130535,1753872640023,-500.6,0.0001883,2]
[376130537,1753872640032,-460.0,0.0001883,2]
[376130539,1753872640041,-460.0,0.0001883,2]
[376130541,1753872640050,-460.0,0.0001883,2]
[376130543,1753872640059,-460.0,0.0001883,2]
[376130545,1753872640068,-950.65,0.0001883,2]
[376130547,1753872640078,-460.0,0.0001883,2]
[376130549,1753872640087,-151.0,0.0001883,2]
[376130551,1753872640097,-460.0,0.0001883,2]
[376130553,1753872640106,-151.0,0.0001883,2]
[376130555,1753872640115,-151.0,0.0001883,2]
[376130557,1753872640124,-460.0,0.0001883,2]
[376130559,1753872640134,-460.0,0.0001883,2]
[376130561,1753872640143,-460.0,0.0001883,2]
[376130563,1753872640152,-500.0,0.0001883,2]
[376130565,1753872640162,-151.57888485,0.0001883,2]
[376130567,1753872640171,-151.84850461,0.0001883,2]
[376130569,1753872640180,-151.57612041,0.0001883,2]
[376130571,1753872640190,-985.88,0.0001883,2]
[376130573,1753872640199,-514.22,0.0001883,2]
[376130575,1753872640209,-592.11589566,0.00018831,2]
[376130577,1753872640218,-460.0,0.00018831,2]
[376130579,1753872640228,-460.0,0.00018831,2]
[376130581,1753872640236,-460.81729209,0.00018831,2]
[376130583,1753872640245,-460.0,0.00018831,2]
[376130585,1753872640255,-460.0,0.00018831,2]
[376130587,1753872640264,-567.41180541,0.00018831,2]
[376130589,1753872640273,-460.0,0.00018831,2]
[376130591,1753872640283,-463.53595659,0.00018831,2]
[376130593,1753872640292,-460.0,0.00018831,2]
[376130595,1753872640301,-460.0,0.00018831,2]
[376130597,1753872640311,-464.38,0.00018831,2]
[376130599,1753872640320,-460.0,0.00018831,2]
[376130601,1753872640330,-460.0,0.00018831,2]
[376130603,1753872640339,-460.0,0.00018831,2]
[376130605,1753872640348,-460.0,0.00018831,2]
[376130607,1753872640358,-460.0,0.00018831,2]
[376130609,1753872640368,-460.0,0.00018831,2]
[376130611,1753872640378,-460.0,0.00018831,2]
[376130613,1753872640387,-460.0,0.00018831,2]
[376130615,1753872640396,-460.0,0.00018831,2]
[376130617,1753872640406,-460.0,0.00018831,2]
[376130624,1753872640546,-460.0,0.00018831,2]
[376130625,1753872640560,-460.0,0.00018831,2]
[376130626,1753872640570,-466.95373641,0.00018831,2]
[376130627,1753872640579,-460.0,0.00018831,2]
[376130628,1753872640588,-460.0,0.00018831,2]
[376130629,1753872640598,-460.0,0.00018831,2]
[376130630,1753872640607,-460.0,0.00018831,2]
[376130631,1753872640617,-460.0,0.00018831,2]
[376130632,1753872640626,-460.0,0.00018831,2]
[376130633,1753872640636,-460.0,0.00018831,2]
[376130634,1753872640646,-466.32,0.00018831,2]
[376130635,1753872640659,-460.0,0.00018831,2]
[376130636,1753872640668,-469.10671878,0.00018831,2]
[376130638,1753872640678,-460.0,0.00018899,2]
[376130639,1753872640687,-460.0,0.00018899,2]
[376130641,1753872640696,-460.0,0.00018899,2]
[376130643,1753872640705,-460.0,0.00018899,2]
[376130645,1753872640715,-1869.77,0.00018899,2]
[376130647,1753872640724,-460.0,0.00018899,2]
[376130649,1753872640734,-753.43480807,0.000189,2]
[376130651,1753872640743,-1196.83815385,0.000189,2]
[376130653,1753872640753,-360.59094813,0.00019004,2]
[376130655,1753872640762,-531.98,0.00019094,3]
[376130657,1753872640772,-265.99,0.00019094,3]
[376130659,1753872640781,-797.97,0.00019094,3]
[376130661,1753872640790,-460.0,0.00019102,2]
[376130663,1753872640800,-460.0,0.00019102,2]
[376130665,1753872640809,-460.0,0.00019102,2]
[376130667,1753872640819,-460.0,0.00019102,2]
[376130669,1753872640828,-460.0,0.00019102,2]
[376130671,1753872640837,-337.5,0.00019102,2]
[376130673,1753872640847,-204.59,0.00019102,2]
[376130675,1753872640856,-576.14,0.00019102,2]
[376130677,1753872640866,-460.0,0.00019102,2]
[376130679,1753872640876,-460.0,0.00019103,2]
[376130681,1753872640885,-460.0,0.00019103,2]
[376130683,1753872640894,-460.0,0.00019103,2]
[376130685,1753872640904,-181.48710471,0.00019103,2]
[376130687,1753872640913,-558.1826945,0.00019103,2]
[376130689,1753872640922,-460.0,0.00019103,2]
[376130691,1753872640932,-460.0,0.00019103,2]
[376130693,1753872640941,-242.43979577,0.00019103,2]
[376130695,1753872640950,-460.0,0.00019103,2]
[376130697,1753872640960,-463.15055095,0.00019103,2]
[376130699,1753872640970,-460.0,0.00019103,2]
[376130701,1753872640980,-460.0,0.00019103,2]
[376130703,1753872640989,-460.0,0.00019103,2]
[376130705,1753872640999,-460.0,0.00019103,2]
[376130707,1753872641008,-460.0,0.00019103,2]
[376130709,1753872641017,-460.0,0.00019103,2]
[376130711,1753872641027,-460.0,0.00019103,2]
[376130713,1753872641036,-496.83,0.00019103,2]
[376130715,1753872641045,-317.65722147,0.00019103,2]
[376130717,1753872641054,-546.46,0.00019103,2]
[376130719,1753872641064,-460.0,0.00019103,2]
[376130721,1753872641073,-460.0,0.00019103,2]
[376130723,1753872641082,-460.0,0.00019103,2]
[376130725,1753872641091,-288.19,0.00019103,2]
[376130727,1753872641100,-460.0,0.00019103,2]
[376130729,1753872641110,-375.78749455,0.00019103,2]
[376130731,1753872641119,-460.0,0.00019103,2]
[376130733,1753872641128,-460.0,0.00019103,2]
[376130735,1753872641138,-797.88,0.00019103,2]
[376130737,1753872641147,-1482.56,0.00019103,2]
[376130739,1753872641156,-460.0,0.00019103,2]
[376130741,1753872641166,-460.0,0.00019103,2]
[376130743,1753872641175,-460.0,0.00019103,2]
[376130745,1753872641184,-460.0,0.00019103,2]
[376130747,1753872641194,-460.0,0.00019103,2]
[376130749,1753872641203,-460.0,0.00019103,2]
[376130751,1753872641213,-460.0,0.00019103,2]
[376130753,1753872641224,-568.02,0.00019103,2]
[376130755,1753872641233,-460.0,0.00019103,2]
[376130757,1753872641243,-460.0,0.00019103,2]
[376130759,1753872641252,-599.23,0.00019103,2]
[376130761,1753872641261,-460.0,0.00019103,2]
[376130763,1753872641271,-460.0,0.00019103,2]
[376130765,1753872641280,-460.0,0.00019103,2]
[376130767,1753872641289,-460.0,0.00019103,2]
[376130769,1753872641299,-547.07,0.00019103,2]
[376130771,1753872641308,-460.0,0.00019103,2]
[376130773,1753872641317,-384.91,0.00019103,2]
[376130775,1753872641327,-460.0,0.00019103,2]
[376130777,1753872641336,-460.0,0.00019103,2]
[376130778,1753872641345,-253.31,0.00019103,2]
[376130780,1753872641355,-460.0,0.00019103,2]
[376130782,1753872641364,-460.0,0.00019103,2]
[376130784,1753872641374,-460.0,0.00019103,2]
[376130787,1753872641384,-460.0,0.00019103,2]
[376130789,1753872641402,-460.0,0.00019103,2]
[376130791,1753872641418,-537.81,0.00019103,2]
[376130792,1753872641427,-460.0,0.00019103,2]
[376130794,1753872641437,-460.0,0.00019103,2]
[376130797,1753872641446,-460.0,0.00019103,2]
[376130798,1753872641456,-460.44,0.00019103,2]
[376130801,1753872641467,-460.0,0.00019103,2]
[376130802,1753872641489,-460.0,0.00019103,2]
[376130804,1753872641505,-460.0,0.00019103,2]
[376130806,1753872641515,-460.0,0.00019103,2]
[376130809,1753872641524,-198.0,0.00019104,2]
[376130811,1753872641533,-151.0,0.00019104,2]
[376130813,1753872641544,-500.0,0.00019104,2]
[376130815,1753872641557,-460.0,0.00019104,2]
[376130817,1753872641566,-590.31659927,0.00019104,2]
[376130819,1753872641575,-525.42,0.00019104,2]
[376130821,1753872641584,-460.0,0.00019104,2]
[376130823,1753872641594,-460.0,0.00019104,2]
[376130825,1753872641603,-460.0,0.00019104,2]
[376130827,1753872641612,-460.0,0.00019104,2]
[376130829,1753872641622,-460.0,0.00019104,2]
[376130831,1753872641631,-460.0,0.00019104,2]
[376130832,1753872641640,-460.0,0.00019104,2]
[376130835,1753872641650,-460.0,0.00019104,2]
[376130836,1753872641659,-460.0,0.00019104,2]
[376130838,1753872641669,-377.51484493,0.00019104,2]
[376130851,1753872641775,-82.48515507,0.00019104,2]
[376130853,1753872641786,-500.6,0.00019104,2]
[376130855,1753872641796,-455.44551388,0.00019104,2]
[376130949,1753872642705,-11.74979942,0.00019104,2]
[376130951,1753872642715,-460.0,0.00019104,2]
[376130954,1753872642725,-256.33777964,0.00019104,2]
[376130956,1753872642734,-461.84450717,0.00019104,2]
[376130959,1753872642758,-488.80549283,0.00019104,2]
[376130961,1753872642768,-568.86545722,0.00019104,2]
[376130963,1753872642778,-460.0,0.00019104,2]
[376130965,1753872642787,-460.0,0.00019104,2]
[376130967,1753872642796,-507.17,0.00019104,2]
[376130969,1753872642806,-985.88,0.00019104,2]
[376130971,1753872642815,-514.22,0.00019104,2]
[376130973,1753872642824,-460.0,0.00019105,2]
[376130975,1753872642835,-464.38,0.00019105,2]
[376130977,1753872642844,-460.0,0.00019105,2]
[376130979,1753872642854,-55.08688865,0.00019105,2]
[376130981,1753872642866,-404.91311135,0.00019105,2]
[376130983,1753872642876,-460.0,0.00019105,2]
[376130985,1753872642885,-460.0,0.00019105,2]